{"text_format":"1","workbook":"xlsx","n_sheets":8,"sheets":["Titulni_list","AC_cast","DC_cast","Konstrukce","Invertory_a_panely","AKU","Regulace_vykonu","VRN"],"not_rendered":{"charts":0,"images":0,"macros":1,"external_links":1,"defined_names":19,"comments":0,"pivot_tables":0},"unopened":[],"bounds":{"document_bytes":16777216,"sheet_cells":100000,"rows_first":2000,"rows_last":500,"rows_between":2000,"halvings":0,"cell_chars":16384,"cell_head_chars":4096},"cells_cut":0,"cells_raw":0,"read":"whole","date_system":"1900"}

{"sheet":"Titulni_list","index":0,"n_rows":46,"n_cols":5,"rows_kept":46,"cut":false,"hidden":false,"merged":[[18,0,18,4],[22,0,22,4],[19,0,19,4]]}
[]
[]
[]
[]
[]
[]
[]
[]
[]
[]
[]
[]
[]
[]
[]
[]
[]
[]
["24.02_FVE ČOV Šumperk"]
[]
[]
[]
["Krycí list rozpočtu instalace FVE"]
[]
[]
[]
[]
[]
[]
[]
[]
[]
[]
[]
[]
[]
["Poř. č.","Úsek","Cena","DPH 21%","Cena s DPH"]
[1,"AC část",{"$f":"AC_cast!G70","v":0},{"$f":"C38*0.21","v":0},{"$f":"C38+D38","v":0}]
[{"$f":"SUBTOTAL(103,$B$38:B39)","v":2},"DC část",{"$f":"DC_cast!G28","v":0},{"$f":"C39*0.21","v":0},{"$f":"C39+D39","v":0}]
[{"$f":"SUBTOTAL(103,$B$38:B40)","v":3},"Konstrukce",{"$f":"Konstrukce!G24","v":0},0,0]
[{"$f":"SUBTOTAL(103,$B$38:B41)","v":4},"Střídače a fotovoltaické panely",{"$f":"Invertory_a_panely!G31","v":0},0,0]
[{"$f":"SUBTOTAL(103,$B$38:B42)","v":4},"AKU",{"$f":"AKU!G25","v":0},0,0]
[{"$f":"SUBTOTAL(103,$B$38:B43)","v":5},"Regulace výkonu",{"$f":"Regulace_vykonu!G20","v":0},0,0]
[{"$f":"SUBTOTAL(103,$B$38:B44)","v":6},"Vedlejší rozpočtové náklady",{"$f":"VRN!G29","v":0},0,0]
[]
["Celkem",null,{"$f":"SUBTOTAL(109,C38:C44)","v":0},{"$f":"SUBTOTAL(109,D38:D44)","v":0},{"$f":"SUBTOTAL(109,E38:E44)","v":0}]

{"sheet":"AC_cast","index":1,"n_rows":70,"n_cols":7,"rows_kept":70,"cut":false,"hidden":false,"merged":[[2,0,69,0]]}
[]
["Úsek","Číslo rozpočtové položky dle ceníku","Název rozpočtové položky","M.J.","Počet m.j.","Cena za m.j.","Celkem za rozpočtovou položku"]
["AC část   ",null,"Materiál",null,null,null,{"$f":"SUBTOTAL(109,G4:G45)","v":0}]
[null,null,"Nástěnná ocelová rozvodnice IP66/20; 1000x800x300 mm","ks",1,null,{"$f":"F4*E4","v":0}]
[null,null,"Nástěnná ocelová rozvodnice IP66/20; 800x600x250 mm","ks",6,null,0]
[null,null,"Výzbroj rozvaděčů, podružný materiál","ks",7,null,0]
[null,null,"AC jistič 40A/3B ","ks",6,null,{"$f":"F7*E7","v":0}]
[null,null,"AC jistič 63A/3B ","ks",4,null,0]
[null,null,"AC jistič 100A/3B ","ks",2,null,0]
[null,null,"AC jistič 160A/3 vč. Spouště","ks",2,null,0]
[null,null,"AC jistič 32A/3B ","ks",5,null,0]
[null,null,"AC jistič 40A/3B ","ks",1,null,{"$f":"F12*E12","v":0}]
[null,null,"AC jistič 50A/3B ","ks",1,null,{"$f":"F13*E13","v":0}]
[null,null,"AC jistič 80A/3B ","ks",1,null,0]
[null,null,"AC jistič 2A/1B","ks",7,null,0]
[null,null,"AC svodič přepětí B+C, třífázový","ks",7,null,{"$f":"F16*E16","v":0}]
[null,null,"Servisní zásuvka IP44","ks",7,null,0]
[null,null,"Kabel CYKY 5x95 mm2","m",7,null,{"$f":"F18*E18","v":0}]
[null,null,"Kabel CYKY 5x50 mm2","m",19,null,0]
[null,null,"Kabel CYKY 5x25 mm2","m",38,null,0]
[null,null,"Cu pás sběrnice 60x10","m",null,null,0]
[null,null,"Cu pás sběrnice 40x10","m",null,null,0]
[null,null,"Kabel CYKY 5x16 mm2","m",62,null,{"$f":"F23*E23","v":0}]
[null,null,"Odpínač pojistek 3F vč. Poj. nož. ","ks",7,null,0]
[null,null,"U-f ochrana dvoustupňová","ks",7,null,0]
[null,null,"Časové relé (alternativně multifunkční relé)","ks",7,null,0]
[null,null,"Smart meter přímý x/5","ks",7,null,{"$f":"F27*E27","v":0}]
[null,null,"MTP 100/5","ks",18,null,{"$f":"F28*E28","v":0}]
[null,null,"MTP 150/5 0,5S","ks",3,null,{"$f":"F29*E29","v":0}]
[null,null,"Bezdrát. Spín. Prvek  RFSG-1M","ks",7,null,{"$f":"F30*E30","v":0}]
[null,null,"Bezdrát. Převodník kontaktu RFSA-61M","ks",21,null,{"$f":"F31*E31","v":0}]
[null,null,"Stykač 3F, 160A 4P","ks",1,null,0]
[null,null,"Stykač 3F, 100A 4P","ks",1,null,{"$f":"F33*E33","v":0}]
[null,null,"Stykač 3F, 63A 4P","ks",2,null,{"$f":"F34*E34","v":0}]
[null,null,"Stykač 3F, 40A 4P","ks",3,null,{"$f":"F35*E35","v":0}]
[null,null,"Protipožární Kabel PRAFlaDur-J 2x1,5 RE P60-R ","m",105,null,0]
[null,null,"Trubka ohebná  32mm šedá  - UV odolná\n","m",137,null,0]
[null,null,"Příchytky na trubku 32 mm  do zdi","ks",69,null,0]
[null,null,"Bezhalogenová ohebná dvouplášťová chránička","m",0,null,0]
[null,null,"Plechové žlaby, rošty 50 x 50  vč. příslušenství","m",126,null,0]
[null,null,"Plechové žlaby, rošty 100 x 50  vč. příslušenství","m",null,null,0]
[null,null,"Plechové žlaby, rošty 500 x 100  vč. příslušenství","m",null,null,{"$f":"F42*E42","v":0}]
[null,null,"Vodič CYA 16 mm2 zž","m",278,null,0]
[null,null,"Stop tlačítko s aretací","ks",7,null,0]
[null,null,"Drobný elektroinstal. mat. - svorky, lisovací oka, šrouby, příchytky","sada",7,null,{"$f":"F45*E45","v":0}]
[]
[null,null,"Požární bezpečnost",null,null,null,{"$f":"SUBTOTAL(109,G48:G53)","v":0}]
[null,null,"Hasící přístroj","ks",14,null,{"$f":"F48*E48","v":0}]
[null,null,"Protipožární ucpávky","ks",2,null,{"$f":"F49*E49","v":0}]
[null,null,"Ostatní náklady"]
[null,null,"GZS z položek prací","%",5,{"$f":"1/100*SUM(G56:G66)","v":0},{"$f":"E51*F51","v":0}]
[null,null,"Kompletační činnost","%",1,{"$f":"1/100*SUM(G56:G66)","v":0},{"$f":"E52*F52","v":0}]
[null,null,"Rezerva","%",0,{"$f":"1/100*SUM(G56:G66)","v":0},{"$f":"E53*F53","v":0}]
[null,null,"Ceníky prací",null,null,null,{"$f":"SUBTOTAL(109,G55:G69)","v":0}]
[null,null,"Elektromontážní a zemní práce"]
[null,null,"Montáž oceloplechové rozvodnice vč. výzbroje","ks",7,null,{"$f":"F56*E56","v":0}]
[null,null,"Napojení na stávající elektroinstalaci objektu","ks",1,null,0]
[null,null,"Napojení na stávající hromosvod. soustavu/pospojování objektu","ks",1,null,0]
[null,null,"Úprava obchodního měření vč. mat. (kabel, jističe, převodník,..)","ks",1,null,0]
[null,null,"Výkop - komunikace (vč. pískové lože, fólie, zához)","m",null,null,0]
[null,null,"Obnova povrchu asfaltu","m",null,null,0]
[null,null,"HDO - parametrizace","ks",2,null,{"$f":"E62*F62","v":0}]
[null,null,"Úprava BOZP"]
[null,null,"Úprava záchytného systému","ks",null,null,{"$f":"F64*E64","v":0}]
[null,null,"HZS"]
[null,null,"Montážní a demontážní práce v HZS","hod",40,null,{"$f":"F66*E66","v":0}]
[null,null,"Výchozí revize","hod",16,null,{"$f":"F67*E67","v":0}]
[null,null,"Dodávky"]
[null,null,"Doprava a přesun dodávek","%",2,{"$f":"1/100*(SUM(G4:G45)+G48+G49)","v":0},{"$f":"E69*F69","v":0}]
[null,null,"AC část celkem",null,null,null,{"$f":"G3+G47+G54","v":0}]

{"sheet":"DC_cast","index":2,"n_rows":28,"n_cols":7,"rows_kept":28,"cut":false,"hidden":false,"merged":[[2,0,27,0]]}
[]
["Úsek","Číslo rozpočtové položky dle ceníku","Název rozpočtové položky","M.J.","Počet m.j.","Cena za m.j.","Celkem za rozpočtovou položku"]
["DC část",null,"Materiál",null,null,null,{"$f":"SUBTOTAL(109,G4:G19)","v":0}]
[null,null,"DC vodič, UV odolný 6mm2_černý","m",1674,null,{"$f":"F4*E4","v":0}]
[null,null,"DC vodič, UV odolný 6mm2_červený","m",1674,null,0]
[null,null,"DC vodič, UV odolný 10mm2_černý","m",null,null,0]
[null,null,"DC vodič, UV odolný 10mm2_červený","m",null,null,0]
[null,null,"Kombiner BOX DC-GAK","ks",null,null,0]
[null,null,"DC odpínač pojistek vč. Pojistek gPV ","ks",16,null,0]
[null,null,"Svodič přepětí PV 1000V DC","ks",16,null,0]
[null,null,"Vodič CYA 16 mm2 zž","m",163,null,0]
[null,null,"Stahovací páska","ks",1674,null,0]
[null,null,"Oceloplechový plný žlab","m",60,null,0]
[null,null,"Lišta na kabely","m",84,null,0]
[null,null,"Podružný materiál (svorky, konektory, příchytky,..)","%",4,{"$f":"1/100*SUM(G4:G12)","v":0},{"$f":"E15*F15","v":0}]
[null,null,"Ostatní náklady"]
[null,null,"GZS z položek prací","%",4,{"$f":"1/100*SUM(G22:G25)","v":0},{"$f":"F17*E17","v":0}]
[null,null,"Kompletační činnost","%",1,{"$f":"1/100*SUM(G22:G25)","v":0},{"$f":"E18*F18","v":0}]
[null,null,"Rezerva","%",0,0,{"$f":"F19","v":0}]
[null,null,"Ceníky prací",null,null,null,{"$f":"SUBTOTAL(109,G21:G27)","v":0}]
[null,null,"Elektromontážní a zemní práce"]
[null,null,"Montáž kabelů DC 6 mm2","m",3348,null,{"$f":"F22*E22","v":0}]
[null,null,"Montáž DC-GAK","ks",0,null,{"$f":"F23*E23","v":0}]
[null,null,"HZS"]
[null,null,"Montážní a demontážní práce v HZS","hod",40,null,{"$f":"F25*E25","v":0}]
[null,null,"Dodávky"]
[null,null,"Doprava a přesun dodávek","%",2,{"$f":"1/100*SUM(G4:G15)","v":0},{"$f":"E27*F27","v":0}]
[null,null,"DC část celkem",null,null,null,{"$f":"G3+G20","v":0}]

{"sheet":"Konstrukce","index":3,"n_rows":24,"n_cols":7,"rows_kept":24,"cut":false,"hidden":false,"merged":[[2,0,23,0]]}
[]
["Úsek","Číslo rozpočtové položky dle ceníku","Název rozpočtové položky","M.J.","Počet m.j.","Cena za m.j.","Celkem za rozpočtovou položku"]
["Konstrukce",null,"Materiál",null,null,null,{"$f":"SUBTOTAL(109,G4:G16)","v":0}]
[null,null,"Hliníková střešní konstrukce na rovnou střechu - východ /západ","ks",null,null,{"$f":"F4*E4","v":0}]
[null,null,"Hliníková střešní konstrukce na rovnou střechu - jih","ks",37,null,{"$f":"F5*E5","v":0}]
[null,null,"Hliníková střešní konstrukce na šikmou střechu","ks",507,null,0]
[null,null,"Hliníková zemní konstrukce na zemní vruty","ks",0,null,0]
[null,null,"Oplocení","m",null,null,0]
[null,null,"Osvětlení","ks",null,null,0]
[null,null,"Kamerový systém","ks",null,null,0]
[null,null,"Podružný materiál","%",2,{"$f":"1/100*SUBTOTAL(109,(G4:G7))","v":0},{"$f":"E11*F11","v":0}]
[null,null,"Ostatní náklady"]
[null,null,"GZS z položek prací","%",4,{"$f":"1/100*SUM(G18:G21)","v":0},{"$f":"E13*F13","v":0}]
[null,null,"Územní vlivy","%",2,{"$f":"1/100*(G18+G21)","v":0},{"$f":"E14*F14","v":0}]
[null,null,"Kompletační činnost","%",1,{"$f":"1/100*SUM(G18:G18)","v":0},{"$f":"E15*F15","v":0}]
[null,null,"Rezerva","%",0,{"$f":"1/100*SUM(G18:G21)","v":0},{"$f":"E16*F16","v":0}]
[null,null,"Ceníky prací",null,null,null,{"$f":"SUBTOTAL(109,G18:G23)","v":0}]
[null,null,"Montáž hliníkové střešní konstrukce","ks",544,null,{"$f":"F18*E18","v":0}]
[null,null,"Montáž zemní konstrukce","ks",0,null,{"$f":"F19*E19","v":0}]
[null,null,"HZS"]
[null,null,"Montážní a demontážní práce v HZS","hod",40,null,{"$f":"F21*E21","v":0}]
[null,null,"Dodávky"]
[null,null,"Doprava a přesun dodávek","%",2,{"$f":"1/100*SUM(G4:G11)","v":0},{"$f":"E23*F23","v":0}]
[null,null,"Konstrukce celkem",null,null,null,{"$f":"G3+G17","v":0}]

{"sheet":"Invertory_a_panely","index":4,"n_rows":31,"n_cols":7,"rows_kept":31,"cut":false,"hidden":false,"merged":[[2,0,30,0]]}
[]
["Úsek","Číslo rozpočtové položky dle ceníku","Název rozpočtové položky","M.J.","Počet m.j.","Cena za m.j.","Celkem za rozpočtovou položku"]
["Střídače a panely",null,"Materiál",null,null,null,{"$f":"SUBTOTAL(109,G4:G17)","v":0}]
[null,null,"Třífázový střídač o výkonu 20 kW","ks",5,null,{"$f":"F4*E4","v":0}]
[null,null,"Třífázový střídač o výkonu 25 kW","ks",1,null,0]
[null,null,"Třífázový střídač o výkonu 30 kW","ks",1,null,0]
[null,null,"Třífázový střídač o výkonu 50 kW","ks",1,null,0]
[null,null,"FV panel o výkonu  450 Wp","ks",544,null,0]
[null,null,"Power Optimizér o výkonu 440 W","ks",42,null,0]
[null,null,"Power Optimizér o výkonu 950 W","ks",235,null,0]
[null,null,"Power Optimizér o výkonu 1200 W","ks",19,null,0]
[null,null,"Plechová vana pod střídač","ks",0,null,{"$f":"E12*F12","v":0}]
[null,null,"Podružný materiál","%",0.5,{"$f":"1/100*SUM(G4:G12)","v":0},{"$f":"F13*E13","v":0}]
[null,null,"Ostatní náklady"]
[null,null,"GZS z položek prací","%",5,{"$f":"1/100*(G20+G21+G24)","v":0},{"$f":"E15*F15","v":0}]
[null,null,"Kompletační činnost","%",3,{"$f":"1/100*(G20+G21+G24)","v":0},{"$f":"E16*F16","v":0}]
[null,null,"Rezerva","%",0,{"$f":"1/100*(G20+G21+G24)","v":0},{"$f":"E17*F17","v":0}]
[null,null,"Ceníky prací",null,null,null,{"$f":"SUBTOTAL(109,G19:G28)","v":0}]
[null,null,"Elektromontážní a zemní práce"]
[null,null,"Montáž třífázového střídače","ks",8,null,{"$f":"F20*E20","v":0}]
[null,null,"Montáž fotovoltaického panelu","ks",544,null,{"$f":"F21*E21","v":0}]
[]
[null,null,"HZS"]
[null,null,"Montážní a demontážní práce v HZS","hod",40,null,{"$f":"F24*E24","v":0}]
[]
[null,null,"Dodávky"]
[]
[null,null,"Doprava a přesun dodávek","%",0.5,{"$f":"1/100*SUM(G4:G8)","v":0},{"$f":"E28*F28","v":0}]
[]
[]
[null,null,"Střídače a panely celkem",null,null,null,{"$f":"G3+G18","v":0}]

{"sheet":"AKU","index":5,"n_rows":25,"n_cols":7,"rows_kept":25,"cut":false,"hidden":true,"merged":[[24,6,25,6],[1,6,4,6],[5,0,25,0],[1,0,4,0],[1,1,4,1],[1,2,4,2],[1,3,4,3],[1,4,4,4],[1,5,4,5],[24,1,25,1],[24,2,25,2],[24,3,25,3],[24,4,25,4],[24,5,25,5]]}
[]
[null,"číslo rozpočtové položky dle ceníku","Název rozpočtové položky","M.J.","počet m.j.","Cena za m.j.","Celkem za rozpočtovou položku"]
[]
[]
[]
["Akumulace",null,"Materiál",null,null,null,{"$f":"SUBTOTAL(109,G7:G15)","v":0}]
[null,null,"Bateriový systém o kapacitě 40 kWh","sada",null,null,{"$f":"F7*E7","v":0}]
[null,null,"Kabel CYKY 5x10 mm2","m",null,null,{"$f":"F8*E8","v":0}]
[null,null,"Bateriový střidač SMA STPS 60","ks",0,null,{"$f":"F9*E9","v":0}]
[null,null,"Kompaktní jistič 63A","ks",null,null,{"$f":"F10*E10","v":0}]
[null,null,"Podružný materiál","%",1,{"$f":"1/100*SUM(G7:G10)","v":0},{"$f":"F11","v":0}]
[null,null,"Ostatní náklady"]
[null,null,"GZS z položek prací","%",5,{"$f":"1/100*SUM(G18:G22)","v":0},{"$f":"E13/100*(G18+G19+G20+G22)","v":0}]
[null,null,"Kompletační činnost","%",3,{"$f":"1/100*SUM(G18:G22)","v":0},{"$f":"E14/100*(G18+G19+G20+G22)","v":0}]
[null,null,"Rezerva","%",0,null,{"$f":"F15","v":0}]
[null,null,"Ceníky prací",null,null,null,{"$f":"SUBTOTAL(109,G17:G24)","v":0}]
[null,null,"Elektromontážní a zemní práce"]
[null,null,"Montáž baterie ","ks",null,null,{"$f":"F18*E18","v":0}]
[null,null,"Montáž střídače","ks",null,null,{"$f":"F19*E19","v":0}]
[null,null,"Oživení a testování systému vč. datového nastavení","ks",null,null,{"$f":"F20*E20","v":0}]
[null,null,"HZS"]
[null,null,"Montážní a demontážní práce v HZS","hod",null,null,{"$f":"F22*E22","v":0}]
[null,null,"Dodávky"]
[null,null,"Doprava a přesun dodávek","%",2,{"$f":"1/100*SUM(G7:G10)","v":0},{"$f":"F24","v":0}]
[null,null,"AKU část celkem",null,null,null,{"$f":"G6+G16","v":0}]

{"sheet":"Regulace_vykonu","index":6,"n_rows":20,"n_cols":7,"rows_kept":20,"cut":false,"hidden":false,"merged":[[2,0,19,0]]}
[]
["Úsek","Číslo rozpočtové položky dle ceníku","Název rozpočtové položky","M.J.","Počet m.j.","Cena za m.j.","Celkem za rozpočtovou položku"]
["Regulace výkonu",null,"Materiál",null,null,null,{"$f":"SUBTOTAL(109,G4:G8)","v":0}]
[null,null,"Rozvaděč. vč. vybavení dle SoP","ks",1,null,{"$f":"F4*E4","v":0}]
[null,null,"Podružný materiál","kpl",1,null,{"$f":"F5*E5","v":0}]
[null,null,"Ostatní náklady"]
[null,null,"GZS z položek prací","%",5,{"$f":"SUM(G11:G17)*1/100","v":0},{"$f":"E7*F7","v":0}]
[null,null,"Kompletační činnost","%",3,{"$f":"SUM(G11:G17)*1/100","v":0},{"$f":"E8*F8","v":0}]
[null,null,"Ceníky prací",null,null,null,{"$f":"SUBTOTAL(109,G10:G19)","v":0}]
[null,null,"Elektromontážní a zemní práce"]
[null,null,"Montáž","ks",1,null,{"$f":"F11*E11","v":0}]
[null,null,"Oživení a nastavení","ks",1,null,{"$f":"F12*E12","v":0}]
[null,null,"Propojení se stávajícím systémem","hod",35,null,{"$f":"F13*E13","v":0}]
[null,null,"Propojení jednotek master / slave optickou trasou + HDP trubka","m",0,null,{"$f":"F14*E14","v":0}]
[null,null,"Výkop pro optickou trasu 35x80cm","m",0,null,{"$f":"F15*E15","v":0}]
[null,null,"HZS"]
[null,null,"Montážní a demontážní práce v HZS","hod",16,null,{"$f":"F17*E17","v":0}]
[null,null,"Dodávky"]
[null,null,"Doprava a přesun dodávek","kpl",1,null,{"$f":"F19","v":0}]
[null,null,"Regulace výkonu celkem",null,null,null,{"$f":"G3+G9","v":0}]

{"sheet":"VRN","index":7,"n_rows":29,"n_cols":7,"rows_kept":29,"cut":false,"hidden":false,"merged":[[2,0,28,0]]}
[]
["Úsek","Číslo rozpočtové položky dle ceníku","Název rozpočtové položky","M.J.","Počet m.j.","Cena za m.j.","Celkem za rozpočtovou položku"]
["Vedlejší rozpočtové náklady",null,"VRN",null,null,null,{"$f":"SUBTOTAL(109,G4:G12)","v":0}]
[null,null,"Zabezpečeni pracoviště","kpl",1,null,{"$f":"F4*E4","v":0}]
[null,null,"Proškolení obsluhy","kpl",1,null,{"$f":"F5*E5","v":0}]
[null,null,"Zkušební provoz","kpl",1,null,{"$f":"F6*E6","v":0}]
[null,null,"Nastavení, zprovoznění a odzkoušení NN ochrany + protokol","kpl",1,null,{"$f":"F7*E7","v":0}]
[null,null,"Vypracování místního provozního předpisu","kpl",1,null,{"$f":"F8*E8","v":0}]
[null,null,"Podružný materiál","%",5,{"$f":"SUM(G4:G8)*1/100","v":0},{"$f":"E9*F9","v":0}]
[null,null,"Ekologická likvidace odpadu","kpl",1,null,{"$f":"F10","v":0}]
[null,null,"Doprava na staveništi (dle dodavatele)","kpl",1,null,{"$f":"F11","v":0}]
[null,null,"Doprava (dle dodavatele)","kpl",1,null,{"$f":"F12","v":0}]
[null,null,"Jímací soustava",null,null,null,{"$f":"G14","v":0}]
[null,null,"Náklady na vynucenou úpravu","kpl",1,null,{"$f":"F14","v":0}]
[null,null,"Dokumentace",null,null,null,{"$f":"SUM(G16:G17)","v":0}]
[null,null,"Projektová dokum. ve stupni DPS a DSPS dle vyhl. č. 499/2006 sb.","kpl",1,null,{"$f":"F16*E16","v":0}]
[null,null,"Realizační projektová dokumentace","kpl",1,null,{"$f":"F17*E17","v":0}]
[null,null,"Inženýring",null,null,null,{"$f":"SUBTOTAL(109,G19:G26)","v":0}]
[null,null,"Komunikace se stavebním úřadem","hod",16,null,{"$f":"F19*E19","v":0}]
[null,null,"Komunikace s HZS","hod",8,null,{"$f":"F20*E20","v":0}]
[null,null,"Zpracování karty zdolávání požáru","hod",16,null,0]
[null,null,"Komunikace s PDS","hod",16,null,0]
[null,null,"Příprava na funkční zkoušky","hod",16,null,0]
[null,null,"Funkční zkoušky","hod",8,null,0]
[null,null,"Účast na PPP (První paralelní připojení)","hod",8,null,0]
[null,null,"Vyřízení licence ERÚ","kpl",1,null,0]
[null,null,"Revize",null,null,null,{"$f":"SUM(G28)","v":0}]
[null,null,"Vystavení výchozí revizní zprávy","hod",14,null,{"$f":"E28*F28","v":0}]
[null,null,"VRN celkem",null,null,null,{"$f":"G3+G13+G15+G18+G27","v":0}]